Cogmind - Beta 17.1 @@@ ROGUE MODE // 2026.08.28 @ 22:35:30 Player: Finn Result: Destroyed by exploding Compression Vault Performance ------------- Evolutions (2) 1000 Regions Visited (4) 800 Robots Destroyed (9) 45 Value Destroyed (203) 203 Prototype IDs (2) 40 Alien Tech Used (0) 0 Bonus (0) 0 TOTAL SCORE: 2088 Bonus ------- None Cogmind --------- Core Integrity 0/550 Matter 300/300 Energy 100/100 System Corruption 0% Temperature Cool (0) Movement Core (50) Location -8/Storage Parts ------- > --- POWER (2) -------- (None) > --- PROPULSION (5) --- (None) > --- UTILITY (2) ------ (None) > --- WEAPON (2) ------- (None) > --- INVENTORY (5) ---- (None) Peak State ------------ > --- POWER ------------ Heavy Ion Engine > --- PROPULSION ------- VTOL Module VTOL Module > --- UTILITY ---------- Visual Processing Unit > --- WEAPON ----------- Medium Laser Beam Cannon > --- INVENTORY -------- Light Ion Engine Medium Laser Small Laser [Rating: 11] Favorites ----------- Power Heavy Ion Engine Engine Heavy Ion Engine Propulsion VTOL Module Treads Advanced Treads Wheel Wheel Flight Unit VTOL Module Utility Visual Processing Unit Device Shield Generator Processor Visual Processing Unit Weapon Small Laser Energy Gun Small Laser Energy Cannon Beam Cannon Build | -11 -10 -9 -8 -8 ------- Run | Yrd Mat Mat Mat Sto Slots Evolved 4 | . . 2 2 . Power 1 | . . . 1 . Propulsion 3 | . . 2 1 . Utility . | . . . . . Weapon . | . . . . . Parts Attached 17 | 6 7 3 1 . Power 3 | 1 1 1 . . Engine 3 | 1 1 1 . . Core . | . . . . . Reactor . | . . . . . Propulsion 7 | 2 4 . 1 . Treads 1 | . . . 1 . Leg . | . . . . . Wheel 2 | 2 . . . . Hover . | . . . . . Flight 4 | . 4 . . . Utility 2 | . 1 1 . . Device 1 | . . 1 . . Storage . | . . . . . Processor 1 | . 1 . . . Hackware . | . . . . . Protection . | . . . . . Artifact . | . . . . . Weapon 5 | 3 1 1 . . Energy Gun 4 | 3 . 1 . . Energy Cannon 1 | . 1 . . . Ballistic Gun . | . . . . . Ballistic Cannon . | . . . . . Launcher . | . . . . . Special Weapon . | . . . . . Impact Weapon . | . . . . . Slashing Weapon . | . . . . . Piercing Weapon . | . . . . . Special Melee Weapon . | . . . . . Unidentified Prototypes 2 | . 1 1 . . Parts Lost 9 | . 2 5 1 1 Power 2 | . . 1 1 . Propulsion 5 | . 1 3 . 1 Utility . | . . . . . Weapon 2 | . 1 1 . . Highest Loss Streak 3 | . 2 3 1 1 To Critical Strikes . | . . . . . Average Backups . | . 1 . . . Power . | . . . . . Propulsion . | . 1 . . . Utility . | . . . . . Weapon . | . . . . . Tool/Special . | . . . . . Unused Backups . | . . . . . Power . | . . . . . Propulsion . | . . . . . Utility . | . . . . . Weapon . | . . . . . Tool/Special . | . . . . . Average Slot Usage (%) 35 | . 58 33 6 7 Engine 7 | . 14 3 5 . Treads 2 | . . . 1 7 Wheel 1 | . 2 . . . Flight 14 | . 24 20 . . Energy Gun 7 | . 14 8 . . Peak Build Rating 11 | 5 11 9 3 3 Average Rating 5 | 3 7 6 1 2 On Entrance 3 | . 5 7 1 3 Avg Prop Armor Cover (%) . | . . . . . Naked Turns 48 | . . . 19 29 Heaviest Build 13 | 7 13 8 3 . Greatest Support 22 | 20 20 12 22 22 Greatest Overweight (x) 2 | . 2 1 . . Average Overweight (x) . | . . . . . Largest Inventory Capacity 5 | 5 5 5 5 5 Average Capacity 5 | 5 5 5 5 5 Most Carried 5 | 2 5 2 1 . Average Carried . | . 1 . . . Final Capacity 5 | 5 5 5 5 5 Final Carried 1 | 1 1 . . . Class Distribution -------------------- 90% | Mutant 9% | Sprinter Dominant Class ---------------- Mutant | -10/Materials Sprinter | -9/Materials Mutant | -8/Materials Mutant | -8/Storage Resources | -11 -10 -9 -8 -8 ----------- Run | Yrd Mat Mat Mat Sto Matter Collected 327 | 257 33 37 . . Remotely . | . . . . . Salvage Created 286 | . 33 253 . . Parts 29 | . 2 27 . . Haulers Intercepted . | . . . . . Recyclers Shooed . | . . . . . Parts Field Recycled . | . . . . . Retrieved Matter . | . . . . . Parts Self-Destructed . | . . . . . Prevented . | . . . . . Parts Restored . | . . . . . Kills | -11 -10 -9 -8 -8 ------- Run | Yrd Mat Mat Mat Sto Combat Hostiles Destroyed 8 | . 1 7 . . Guns 6 | . 1 5 . . AOE 2 | . . 2 . . Classes Destroyed 4 | . 1 3 . . Builder 1 | . . 1 . . Swarmer 4 | . . 4 . . Grunt 2 | . 1 1 . . Sentry 2 | . . 2 . . Best Kill Streak 5 | . 1 5 . . Combat Bots Only 4 | . 1 4 . . Max Kills in Single Turn 3 | . 1 3 . . Gunslinging . | . . . . . Exploded 2 | . . 2 . . Melee . | . . . . . Uniques/NPCs Destroyed . | . . . . . Combat | -11 -10 -9 -8 -8 -------- Run | Yrd Mat Mat Mat Sto Hostile Shots Fired 180 | . 43 74 28 35 Missed 61 | . 12 34 6 9 Hits 119 | . 31 40 22 26 Projectile 119 | . 31 40 22 26 Critical Strikes 3 | . . . 1 2 Damage Taken 1534 | . 366 398 340 430 Core 927 | . 153 204 219 351 Absorbed by Shields . | . . . . . Core Remaining (%) 62 | 100 38 49 . . Volleys Fired 23 | . 8 15 . . Largest 1 | . 1 1 . . Hottest 45 | . 40 45 . . Shots Fired 23 | . 8 15 . . Gun 23 | . 8 15 . . Cannon . | . . . . . Launcher . | . . . . . Special . | . . . . . Kinetic . | . . . . . Thermal 8 | . 8 . . . Explosive . | . . . . . Electromagnetic 15 | . . 15 . . Robot Hit Streak 6 | . 2 6 . . Robot Miss Streak 3 | . 2 3 . . Penetration Max . | . . . . . Secondary Targets . | . . . . . Shots Hit Robots 19 | . 5 14 . . Core Hits 16 | . 3 11 2 . Critical Kills . | . . . . . Critical Parts Destroyed . | . . . . . Critical Strikes . | . . . . . Melee Attacks . | . . . . . Impact . | . . . . . Slashing . | . . . . . Piercing . | . . . . . Sneak Attacks . | . . . . . Combat Hostiles . | . . . . . Follow-up Attacks . | . . . . . Damage Inflicted 385 | . 61 283 19 22 Guns 230 | . 55 175 . . Cannons . | . . . . . Explosions 106 | . . 106 . . Melee . | . . . . . Ramming 49 | . 6 2 19 22 Kinetic . | . . . . . Thermal 161 | . 55 106 . . Explosive . | . . . . . Electromagnetic 175 | . . 175 . . Impact . | . . . . . Slashing . | . . . . . Piercing . | . . . . . Highest Corruption 2 | . 2 . . . Average Corruption 2 | . 2 . . . Corruption Purged . | . . . . . Corruption Blocked . | . . . . . Overload Shots . | . . . . . Overflow Damage . | . . . . . Projectiles . | . . . . . Explosions . | . . . . . Melee . | . . . . . Knockbacks . | . . . . . Impact . | . . . . . Kinetic . | . . . . . Secondary . | . . . . . Self-Inflicted Damage 18 | . 2 1 7 8 Shots . | . . . . . Rammed 21 | . 2 1 9 9 Targets Rammed 21 | . 2 1 9 9 Kicked . | . . . . . Crushed . | . . . . . Highest Temperature 81 | . 81 6 5 . Average Temperature 35 | . 38 5 5 . Received Heat Transfer 702 | . 204 66 162 270 Siege Activations . | . . . . . Martial Activations . | . . . . . Shielding Activations . | . . . . . Robots Disrupted . | . . . . . Combat Hostiles . | . . . . . Robots Corrupted . | . . . . . Combat Hostiles . | . . . . . Parts Fried 1 | . . 1 . . Impact Corruptions . | . . . . . Robots Melted . | . . . . . Combat Hostiles . | . . . . . Parts Melted . | . . . . . Heat Transferred 275 | . 125 150 . . Parts Sabotaged . | . . . . . Parts Stolen . | . . . . . Parts Stripped . | . . . . . Power Chain Reactions 1 | . . 1 . . Alert | -11 -10 -9 -8 -8 ------- Run | Yrd Mat Mat Mat Sto Maximum Alert Level . | . . . . . Low Security (%) 100 | 100 100 100 100 100 Level 1 . | . . . . . Level 2 . | . . . . . Level 3 . | . . . . . Level 4 . | . . . . . Level 5 . | . . . . . High Security . | . . . . . Max Security . | . . . . . Peak Influence 139 | . 30 139 53 5 Initial 53 | . . 8 53 5 Average 15 | . 1 81 36 . Influence Increases 261 | . 50 209 2 . Destroy 0b10 Robot/C 160 | . 20 140 . . Destroy 0b10 Robot/NC 5 | . . 5 . . Destroy Leader 30 | . . 30 . . Successful Hack 2 | . . . 2 . Destroy Structure 4 | . . 4 . . Partial Spotted 45 | . 30 15 . . Lose Combat Pursuer 15 | . . 15 . . Influence Decreases 261 | . 30 100 116 15 Entered New Map 98 | . . 12 76 10 Time Decay 103 | . 20 48 30 5 Lost Part 60 | . 10 40 10 . Squads Dispatched 4 | . 1 1 1 1 Investigation 1 | . . . 1 . Extermination . | . . . . . Reinforcement 3 | . 1 1 . 1 Assault . | . . . . . Garrison . | . . . . . Intercept . | . . . . . Searches Triggered . | . . . . . Construction Impeded . | . . . . . Haulers Reinforced . | . . . . . Active Scanning Responses . | . . . . . Cargo Convoy Interrupts . | . . . . . Stealth | -11 -10 -9 -8 -8 --------- Run | Yrd Mat Mat Mat Sto Distress Signals 2 | . . 2 . . Communications Jammed . | . . . . . Distress Signals . | . . . . . Times Spotted 34 | . 8 18 4 4 Peak Tracking Total 11 | . 6 11 3 3 Tactical Retreats 1 | . . 1 . . Traps | -11 -10 -9 -8 -8 ------- Run | Yrd Mat Mat Mat Sto Traps Triggered . | . . . . . Indirectly . | . . . . . Trap Hack Attempts . | . . . . . Triggered . | . . . . . Disarmed . | . . . . . Reprogrammed . | . . . . . Reused . | . . . . . Traps Extracted . | . . . . . Installed . | . . . . . Triggered . | . . . . . Machines | -11 -10 -9 -8 -8 ---------- Run | Yrd Mat Mat Mat Sto Machines Disabled . | . . . . . Max in Single Turn . | . . . . . Machines Repaired . | . . . . . Machines Dismantled . | . . . . . Machines Sabotaged . | . . . . . Overloaded Fab Kills . | . . . . . Hacking | -11 -10 -9 -8 -8 --------- Run | Yrd Mat Mat Mat Sto Machines Accessed 3 | . . . 2 1 Terminals 2 | . . . 1 1 Fabricators . | . . . . . Repair Stations . | . . . . . Recycling Units . | . . . . . Scanalyzers 1 | . . . 1 . Garrison Access . | . . . . . Total Hacks 5 | . . . 4 1 Successful 2 | . . . 1 1 Failed 3 | . . . 3 . Catastrophic . | . . . . . Database Lockouts . | . . . . . Manual . | . . . . . Terminals 4 | . . . 3 1 Fabricators . | . . . . . Repair Stations . | . . . . . Recycling Units . | . . . . . Scanalyzers 1 | . . . 1 . Garrison Access . | . . . . . Terminal Hacks 1 | . . . . 1 Locate Traps 1 | . . . . 1 Fabricator Hacks . | . . . . . Repair Station Hacks . | . . . . . Recycling Unit Hacks . | . . . . . Scanalyzer 1 | . . . 1 . Retrieve Study 1 | . . . 1 . Garrison Access Hacks . | . . . . . Unauthorized Hacks . | . . . . . Terminals . | . . . . . Fabricators . | . . . . . Repair Stations . | . . . . . Recycling Units . | . . . . . Scanalyzers . | . . . . . Garrison Access . | . . . . . Data Cores Recovered . | . . . . . Used . | . . . . . Hacking Detections 2 | . . . 1 1 Full Trace Events 1 | . . . 1 . Feedback Events . | . . . . . Feedback Blocked . | . . . . . Robot Schematics Acquired . | . . . . . Robots Built . | . . . . . Authchips . | . . . . . Time . | . . . . . Total Robot Build Rating . | . . . . . Part Schematics Acquired . | . . . . . Parts Built . | . . . . . Authchips . | . . . . . Time . | . . . . . Total Part Build Rating . | . . . . . Part Studies Acquired 1 | . . . 1 . Parts Repaired . | . . . . . Time . | . . . . . Parts Recycled . | . . . . . Recycled Matter . | . . . . . Retrieved Matter . | . . . . . Retrieved Components . | . . . . . Parts Scanalyzed . | . . . . . Part Schematics Acquired . | . . . . . Parts Damaged . | . . . . . Bothacking | -11 -10 -9 -8 -8 ------------ Run | Yrd Mat Mat Mat Sto Used RIF Installer . | . . . . . Robots Hacked . | . . . . . Non-combat . | . . . . . Combat . | . . . . . Robot Hacks Applied . | . . . . . Relay Couplers Released . | . . . . . Fabnet Peak Effective % . | . . . . . Robots Rewired . | . . . . . Allies Hacked . | . . . . . Hacks Repelled . | . . . . . Allies | -11 -10 -9 -8 -8 -------- Run | Yrd Mat Mat Mat Sto Total Allies . | . . . . . Largest Group . | . . . . . Highest-Rated Group . | . . . . . Highest-Rated Ally . | . . . . . Total Orders . | . . . . . Ally Attacks . | . . . . . Total Damage . | . . . . . Kills . | . . . . . Allies Corrupted . | . . . . . Allies Melted . | . . . . . Intel | -11 -10 -9 -8 -8 ------- Run | Yrd Mat Mat Mat Sto Active Infowar (turns) 18 | . 18 . . . Optics 18 | . 18 . . . Robot Analysis Total . | . . . . . Derelict Logs Recovered . | . . . . . Drone Launches . | . . . . . Drone Recoveries . | . . . . . Exploration | -11 -10 -9 -8 -8 ------------- Run | Yrd Mat Mat Mat Sto Turns Passed 802 | 55 367 115 69 196 Spaces Moved 675 | 56 311 168 78 62 Core 100 | 8 . 11 72 9 Treads 59 | . . . 6 53 Legs . | . . . . . Wheels 75 | 48 27 . . . Hover . | . . . . . Flight 441 | . 284 157 . . Fastest Speed 29 | 50 32 29 50 50 Average Speed 80 | 75 99 36 57 131 Slowest Speed 195 | 80 195 115 145 145 Overloaded Moves . | . . . . . Propulsion Burnouts . | . . . . . Robots Hopped 1 | . . 1 . . Potential Cave-ins . | . . . . . Cave-ins Triggered . | . . . . . Exploration Rate (%) 17 | 4 42 23 8 10 Regions Visited 4 Branch Regions 1 Pre-discovered Areas . | . . . . . Known Exits Taken . | . . . . . Unknown Exits Taken 4 | 1 1 1 1 . Scrap Searched . | . . . . . Spaces Dug . | . . . . . Terrain Destroyed 3 | . . 3 . . Melee . | . . . . . Projectile . | . . . . . AOE 3 | . . 3 . . Terrain Rammed . | . . . . . Walls Destroyed . | . . . . . Machines Disabled . | . . . . . Actions | -11 -10 -9 -8 -8 --------- Run | Yrd Mat Mat Mat Sto Total 906 | 67 360 204 100 175 Wait 148 | . 18 14 12 104 Move 669 | 55 310 165 77 62 Hop 1 | . . 1 . . Pick Up 17 | 6 7 3 1 . Fast Attach . | . . . . . Attach 15 | 5 5 4 1 . Detach . | . . . . . Swap 4 | 1 3 . . . Drop 8 | . 7 1 . . Fire 23 | . 8 15 . . Melee . | . . . . . Ram 14 | . 2 1 4 7 Kick . | . . . . . Crush 7 | . . . 5 2 Escape Stasis . | . . . . . Rewire . | . . . . . Trap . | . . . . . Miscellaneous . | . . . . . Route ------- -11/Scrapyard -10/Materials -9/Materials -8/Materials -8/Storage History --------- Turn | Location | Event 11 | -11/Scrapyard | Discovered new exit (range 16) 56 | -11/Scrapyard | Entered Materials 311 | -10/Materials | Build established: Mutant 396 | -10/Materials | Core integrity fell below 50% 410 | -10/Materials | Discovered new exit (range 16) 423 | -10/Materials | Entered another Materials area 423 | -9/Materials | Evolved 2 slots: Propulsion x2 500 | -9/Materials | Lost 3 parts (1p2n) 530 | -9/Materials | Core integrity fell below 50% 535 | -9/Materials | Discovered new exit (range 4) 538 | -9/Materials | Entered another Materials area 538 | -8/Materials | Evolved 2 slots: Power x1, Propulsion x1 581 | -8/Materials | Discovered new exit (range 5) 607 | -8/Materials | Entered Storage 776 | -8/Storage | Core integrity fell below 50% 788 | -8/Storage | Core integrity fell below 20% 803 | -8/Storage | Destroyed by exploding Compression Vault Last Messages --------------- LOCATION=UNKNOWN GOAL=ESCAPE 00619_ Connecting with Terminal... 00619_ Current location identified: Storage >>Traps(Locate) Found 4 traps in 1 array: 4x Blade Trap Map updated. 00628_ Connecting with Terminal... 00655_ O-24 Administrator: "IFF HANDSHAKE FAILED. SECURING TERMINAL." 00659_ ALERT: Hostiles spotted, dispatching reinforcements to Terminal S008. 00763_ Critical hit (Burn: +37). 00771_ Slammed into G-47 Trooper. 00774_ Adv. Treads destroyed. 00774_ Slammed into G-47 Trooper. 00795_ Critical hit (Burn: +37). 00803_ Compression Vault explodes. 00803_ G-47 Trooper destroyed. Map ----- +----------------------------------------------------+ | ?????????????????????????????????????????????????? | | ?????????????????????????????????????????????????? | | ?????????????????????????????????????????????????? | | ?????????????????????????????????????????????????? | | ?????????????????????????????????????????????????? | | ?????????????????????????????????????????????????? | | ?????????????????????????????????????????????????? | | ?????????????????????????????????????????????????? | | ??????????????????????????????????????^^?????????? | | ?????????????????????????????????????????^???????? | | ?????????????????????????????????????????????????? | | ?????????????????????????????????????^???????????? | | ?????????????????????????????????????????????????? | | ?????????????????????????????????????????????????? | | ?????????????????????????????????????????????????? | | ?????????????????????????????????????????????????? | | ???????????????###+###################+######????? | | ?????????????? #????? | | ?????????????? #????? | | ?????????????? #????? | | ?????????????????????####+##+#########/######????? | | ????????????????????????# ## ###???? | | ????????????????????????# ## """" ""#???? | | ????????????????????????# ## """" ""#???? | | ????????????????????????# = %% ## """" T"#???? | | ????????????????????????#@ %g%%% ## """" ""#???? | | ????????????????????????#"""g ## ""#???? | | ????????????????????????#""" ## ###???? | | ????????????????????????#""" ## #?????? | | ????????????????????????# ## #?????? | | ????????????????????????###############T####?????? | | ??????????????????????????????????????###????????? | | ?????????????????????????????????????????????????? | | | | | | | | | | | | | | | | | | | | | | | | | | | | | | | | | | | +----------------------------------------------------+ Best States ------------- Heat Dissipation 31 Energy Generation 14 Energy Capacity 280 Matter Stores 300 Matter Capacity 300 Sight Range 18 Terrain Scan Density 10 Evasion (%) 64 Recoil Reduction 1 Item Schematics ----------------- None Robot Schematics ------------------ None Fabricated ------------ Nothing Repaired ---------- Nothing Studied --------- Lgt. Ion Engine | -8/Materials | Hacked Alien Tech Used ----------------- None Achievements -------------- None Challenges ------------ None Game ------ Seed LightRecyclingPrototype Manual? 0 Play Time 00:10:32 Cumulative 17.9 hours Start 2026.08.28 @ 22:25:57 End 2026.08.28 @ 22:35:30 Sessions 1 Manual Loads 0 Difficulty Rogue Special Mode None Game No. 35 Rogue 18 Adventurer 15 Explorer 2 Win Type - Total 0 Types 0/0/0/0/0/0/0/0/0/0 Lore% 20 Gallery% 19 Achievement% 15 Wizard Run 0 Options --------- Layout 1 ASCII 0 Keyboard 0 Movement Mouse Keybinds 0 Fullscreen 1 Font 24/Smallcaps Map View 50x35 Zoom Use 0% Tactical HUD 1 Map Filters NONE Filters NONE Steam 1 RUN: d8b6cf5c-3955-44b6-83da-3d60b10e0738